Cogmind - Beta 14 @@@ ROGUE MODE // 2025.03.18 @ 11:25:16 Player: Zoe Result: Destroyed by D-53 Grenadier with Mini Grenade Launcher Performance ------------- Evolutions (0) 0 Regions Visited (2) 400 Robots Destroyed (3) 15 Value Destroyed (88) 88 Prototype IDs (0) 0 Alien Tech Used (0) 0 Bonus (0) 0 TOTAL SCORE: 503 Bonus ------- None Cogmind --------- Core Integrity 0/250 Matter 300/300 Energy 88/100 System Corruption 0% Temperature Cool (0) Movement Core (50) Location -10/Mines Parts ------- > --- POWER (1) -------- (None) > --- PROPULSION (2) --- (None) > --- UTILITY (2) ------ (None) > --- WEAPON (2) ------- (None) > --- INVENTORY (5) ---- Aluminum Leg Small Storage Unit Experimental Sensor Array Improved Terrain Scanner Peak State ------------ > --- POWER ------------ Light Ion Engine > --- PROPULSION ------- Aluminum Leg Aluminum Leg > --- UTILITY ---------- Small Storage Unit Improved Terrain Scanner > --- WEAPON ----------- EM Pulse Gun Medium Laser > --- INVENTORY -------- Light Ion Engine Aluminum Leg Experimental Sensor Array Small Laser [Rating: 10] Favorites ----------- Power Light Ion Engine Engine Light Ion Engine Propulsion Aluminum Leg Leg Aluminum Leg Utility Small Storage Unit Device Improved Terrain Scanner Storage Small Storage Unit Weapon Medium Laser Energy Gun Medium Laser Build | -11 -10 -10 ------- Run | Yrd Mat Min Slots Evolved . | . . . Power . | . . . Propulsion . | . . . Utility . | . . . Weapon . | . . . Parts Attached 10 | 6 . 4 Power 2 | 1 . 1 Engine 2 | 1 . 1 Core . | . . . Reactor . | . . . Propulsion 3 | 2 . 1 Treads . | . . . Leg 3 | 2 . 1 Wheel . | . . . Hover . | . . . Flight . | . . . Utility 2 | 1 . 1 Device 1 | . . 1 Storage 1 | 1 . . Processor . | . . . Hackware . | . . . Protection . | . . . Artifact . | . . . Weapon 3 | 2 . 1 Energy Gun 3 | 2 . 1 Energy Cannon . | . . . Ballistic Gun . | . . . Ballistic Cannon . | . . . Launcher . | . . . Special Weapon . | . . . Impact Weapon . | . . . Slashing Weapon . | . . . Piercing Weapon . | . . . Special Melee Weapon . | . . . Unidentified Prototypes . | . . . Parts Lost 7 | . . 7 Power 2 | . . 2 Propulsion 2 | . . 2 Utility . | . . . Weapon 3 | . . 3 Highest Loss Streak 5 | . . 5 To Critical Strikes . | . . . Average Slot Usage (%) 92 | . 85 94 Engine 14 | . 14 14 Leg 27 | . 28 27 Device 7 | . . 9 Storage 14 | . 14 14 Energy Gun 27 | . 28 27 Peak Build Rating 10 | 6 6 10 Average Rating 7 | 4 6 8 On Entrance 4 | . 6 6 Naked Turns 1 | . . 1 Heaviest Build 13 | 12 12 13 Greatest Support 20 | 20 20 20 Greatest Overweight (x) . | . . . Average Overweight (x) . | . . . Largest Inventory Capacity 8 | 8 8 8 Average Capacity 7 | 6 8 7 Most Carried 4 | 2 2 4 Average Carried 2 | . 2 2 Final Capacity 8 | 8 8 5 Final Carried 4 | 2 2 4 Class Distribution -------------------- 100% | Mutant Dominant Class ---------------- Mutant | -10/Materials Mutant | -10/Mines Resources | -11 -10 -10 ----------- Run | Yrd Mat Min Matter Collected 282 | 198 . 84 Remotely . | . . . Salvage Created 97 | . . 97 Parts 6 | . . 6 Haulers Intercepted . | . . . Recyclers Shooed . | . . . Parts Field Recycled . | . . . Retrieved Matter . | . . . Parts Self-Destructed . | . . . Prevented . | . . . Kills | -11 -10 -10 ------- Run | Yrd Mat Min Combat Hostiles Destroyed 2 | . . 2 Guns 1 | . . 1 AOE 1 | . . 1 Classes Destroyed 2 | . . 2 Tunneler 1 | . . 1 Grunt 2 | . . 2 Best Kill Streak 3 | . . 3 Combat Bots Only 2 | . . 2 Max Kills in Single Turn 2 | . . 2 Gunslinging . | . . . Exploded 1 | . . 1 Melee . | . . . Uniques/NPCs Destroyed . | . . . Combat | -11 -10 -10 -------- Run | Yrd Mat Min Hostile Shots Fired 50 | . . 50 Missed 20 | . . 20 Damage Taken 766 | . . 766 Core 261 | . . 261 Absorbed by Shields . | . . . Core Remaining (%) 100 | 100 . . Volleys Fired 21 | . 6 15 Largest 2 | . 2 2 Hottest 90 | . 90 90 Shots Fired 36 | . 12 24 Gun 36 | . 12 24 Cannon . | . . . Launcher . | . . . Special . | . . . Kinetic . | . . . Thermal 19 | . 6 13 Explosive . | . . . Electromagnetic 17 | . 6 11 Robot Hit Streak 11 | . 2 11 Robot Miss Streak 5 | . 5 2 Penetration Max . | . . . Secondary Targets . | . . . Shots Hit Robots 22 | . 4 18 Core Hits 8 | . 2 6 Critical Kills . | . . . Critical Parts Destroyed . | . . . Critical Strikes 1 | . . 1 Burn 1 | . . 1 Melee Attacks . | . . . Impact . | . . . Slashing . | . . . Piercing . | . . . Sneak Attacks . | . . . Combat Hostiles . | . . . Follow-up Attacks . | . . . Damage Inflicted 396 | . 25 371 Guns 250 | . 25 225 Cannons . | . . . Explosions 146 | . . 146 Melee . | . . . Ramming . | . . . Kinetic . | . . . Thermal 297 | . 25 272 Explosive . | . . . Electromagnetic 99 | . . 99 Impact . | . . . Slashing . | . . . Piercing . | . . . Highest Corruption . | . . . Average Corruption . | . . . Corruption Purged . | . . . Corruption Blocked . | . . . Overload Shots . | . . . Overflow Damage . | . . . Projectiles . | . . . Explosions . | . . . Melee . | . . . Knockbacks . | . . . Impact . | . . . Kinetic . | . . . Secondary . | . . . Self-Inflicted Damage 46 | . . 46 Shots 1 | . . 1 Rammed . | . . . Targets Rammed . | . . . Kicked . | . . . Crushed . | . . . Highest Temperature 276 | . 90 276 Average Temperature 84 | . 37 109 Received Heat Transfer 74 | . . 74 Siege Activations . | . . . Robots Corrupted . | . . . Combat Hostiles . | . . . Parts Fried . | . . . Impact Corruptions . | . . . Robots Melted . | . . . Combat Hostiles . | . . . Parts Melted 1 | . . 1 Heat Transferred 644 | . 74 570 Parts Sabotaged . | . . . Parts Stolen . | . . . Parts Stripped . | . . . Power Chain Reactions 1 | . . 1 Alert | -11 -10 -10 ------- Run | Yrd Mat Min Peak Influence 78 | . 45 78 Initial 17 | . . 17 Average 46 | . 35 56 Maximum Alert Level . | . . . Low Security (%) 100 | 100 100 100 Level 1 . | . . . Level 2 . | . . . Level 3 . | . . . Level 4 . | . . . Level 5 . | . . . High Security . | . . . Max Security . | . . . Squads Dispatched 2 | . 2 . Investigation . | . . . Extermination . | . . . Reinforcement 2 | . 2 . Assault . | . . . Garrison . | . . . Intercept . | . . . Searches Triggered . | . . . Construction Impeded . | . . . Haulers Reinforced . | . . . Active Scanning Responses . | . . . Cargo Convoy Interrupts . | . . . Stealth | -11 -10 -10 --------- Run | Yrd Mat Min Distress Signals . | . . . Communications Jammed . | . . . Distress Signals . | . . . Times Spotted 23 | . 7 16 Peak Tracking Total 14 | . 4 14 Tactical Retreats 1 | . . 1 Traps | -11 -10 -10 ------- Run | Yrd Mat Min Traps Triggered . | . . . Indirectly . | . . . Trap Hack Attempts . | . . . Triggered . | . . . Disarmed . | . . . Reprogrammed . | . . . Reused . | . . . Traps Extracted . | . . . Installed . | . . . Triggered . | . . . Machines | -11 -10 -10 ---------- Run | Yrd Mat Min Machines Disabled . | . . . Max in Single Turn . | . . . Machines Repaired . | . . . Machines Dismantled . | . . . Machines Sabotaged . | . . . Overloaded Fab Kills . | . . . Hacking | -11 -10 -10 --------- Run | Yrd Mat Min Machines Accessed . | . . . Terminals . | . . . Fabricators . | . . . Repair Stations . | . . . Recycling Units . | . . . Scanalyzers . | . . . Garrison Access . | . . . Total Hacks . | . . . Successful . | . . . Failed . | . . . Catastrophic . | . . . Database Lockouts . | . . . Manual . | . . . Terminals . | . . . Fabricators . | . . . Repair Stations . | . . . Recycling Units . | . . . Scanalyzers . | . . . Garrison Access . | . . . Terminal Hacks . | . . . Fabricator Hacks . | . . . Repair Station Hacks . | . . . Recycling Unit Hacks . | . . . Scanalyzer . | . . . Garrison Access Hacks . | . . . Unauthorized Hacks . | . . . Terminals . | . . . Fabricators . | . . . Repair Stations . | . . . Recycling Units . | . . . Scanalyzers . | . . . Garrison Access . | . . . Data Cores Recovered . | . . . Used . | . . . Hacking Detections . | . . . Full Trace Events . | . . . Feedback Events . | . . . Feedback Blocked . | . . . Robot Schematics Acquired . | . . . Robots Built . | . . . Authchips . | . . . Time . | . . . Total Robot Build Rating . | . . . Part Schematics Acquired . | . . . Parts Built . | . . . Authchips . | . . . Time . | . . . Total Part Build Rating . | . . . Parts Repaired . | . . . Time . | . . . Parts Recycled . | . . . Recycled Matter . | . . . Retrieved Matter . | . . . Retrieved Components . | . . . Parts Scanalyzed . | . . . Part Schematics Acquired . | . . . Parts Damaged . | . . . Bothacking | -11 -10 -10 ------------ Run | Yrd Mat Min Used RIF Installer . | . . . Robots Hacked . | . . . Non-combat . | . . . Combat . | . . . Robot Hacks Applied . | . . . Relay Couplers Released . | . . . Fabnet Peak Effective % . | . . . Robots Rewired . | . . . Allies Hacked . | . . . Hacks Repelled . | . . . Allies | -11 -10 -10 -------- Run | Yrd Mat Min Total Allies . | . . . Largest Group . | . . . Highest-Rated Group . | . . . Highest-Rated Ally . | . . . Total Orders . | . . . Ally Attacks . | . . . Total Damage . | . . . Kills . | . . . Allies Corrupted . | . . . Allies Melted . | . . . Intel | -11 -10 -10 ------- Run | Yrd Mat Min Robot Analysis Total . | . . . Derelict Logs Recovered 2 | . . 2 Drone Launches . | . . . Drone Recoveries . | . . . Exploration | -11 -10 -10 ------------- Run | Yrd Mat Min Turns Passed 571 | 71 101 399 Spaces Moved 361 | 55 70 236 Core 10 | 8 . 2 Treads . | . . . Legs 351 | 47 70 234 Wheels . | . . . Hover . | . . . Flight . | . . . Fastest Speed 50 | 50 120 50 Average Speed 118 | 109 120 119 Slowest Speed 120 | 120 120 120 Overloaded Moves . | . . . Propulsion Burnouts . | . . . Robots Hopped . | . . . Cave-ins Triggered . | . . . Exploration Rate (%) 28 | 4 22 60 Regions Visited 2 Branch Regions 1 Pre-discovered Areas 1 | . . 1 Known Exits Taken . | . . . Unknown Exits Taken 2 | 1 1 . Scrap Searched 1 | . . 1 Spaces Dug . | . . . Terrain Destroyed 6 | . . 6 Melee . | . . . Projectile . | . . . AOE 6 | . . 6 Terrain Rammed . | . . . Walls Destroyed . | . . . Machines Disabled . | . . . Actions | -11 -10 -10 --------- Run | Yrd Mat Min Total 466 | 62 75 329 Wait 71 | . . 71 Move 359 | 54 69 236 Hop . | . . . Pick Up 3 | 2 . 1 Fast Attach 7 | 6 . 1 Attach 2 | . . 2 Detach 2 | . . 2 Swap 1 | . . 1 Drop . | . . . Fire 21 | . 6 15 Melee . | . . . Ram . | . . . Kick . | . . . Crush . | . . . Escape Stasis . | . . . Rewire . | . . . Trap . | . . . Miscellaneous . | . . . Route ------- -11/Scrapyard -10/Materials -10/Mines History --------- Turn | Location | Event 2 | -11/Scrapyard | Met Revision 17 4 | -11/Scrapyard | Discovered new exit (range 15) 72 | -11/Scrapyard | Entered Materials 142 | -10/Materials | Discovered new exit (range 14) 173 | -10/Materials | Entered Mines 322 | -10/Mines | Build established: Mutant 360 | -10/Mines | Learned Materials garrison access intel 389 | -10/Mines | Found a damaged Exp. Sensor Array with a note attached 392 | -10/Mines | Found Prototype Device 474 | -10/Mines | Assembled infested the area 568 | -10/Mines | Core integrity fell below 50% 571 | -10/Mines | Core integrity fell below 20% 572 | -10/Mines | Destroyed by D-53 Grenadier with Mini Grenade Launcher Last Messages --------------- 00556_ K-01 Serf collects debris. 00560_ K-01 Serf destroyed. 00561_ The unstable cave ceiling collapses. 00561_ D-53 Grenadier suffers critical hit (Burn). 00562_ T-07 Excavator is excavating. 00563_ K-01 Serf destroyed. 00564_ U-05 Engineer builds a Wall. 00564_ Med. Laser destroyed. 00565_ U-05 Engineer builds a Wall. 00565_ Aluminum Leg destroyed. 00568_ U-05 Engineer lays Concrete. 00569_ U-05 Engineer builds a Wall. 00570_ U-05 Engineer lays Concrete. 00570_ Aluminum Leg destroyed. 00570_ Lgt. Ion Engine destroyed. 00570_ Sml. Laser destroyed. 00571_ U-05 Engineer lays Concrete. 00572_ The unstable cave ceiling collapses. 00572_ U-05 Engineer builds a Wall. Map ----- +----------------------------------------------------+ | | | | | ????????????????????#???????????#???#????????????? | | ????????????????????#???#??????#??#????#??????#??? | | ?????????????????????????????????????????????#???? | | ??????????????????????#?????#???######???#????#??? | | ?????????????????#???#??????#??## ##??????????? | | ??????????????????????#?#?###### #???#??????? | | ??????????????#????????????# """" ##?????##??? | | ????????????????????##?????# ## """" ###?#??#??? | | ????????????????????# ?????# ## """" ##??????? | | ?????????????????### ##?#?# ## #??????? | | ????????????????????# ????# ### ##?????? | | ????????????????????# ?#??# #### ##????? | | ???????????????????## ?#### ##?#### #?##?? | | ??????????????#?#### ## # #????## #????? | | ???????????#### # # = #####?### ##?#### | | ??????????? % ##??## ###?# | | ???????????# % ! #### #?#?### ##### ## | | ??????????????##### ##??#?????# #? | | ????????????????# #??####??# #######? | | ????????????????#### ### ###??## #??????? | | ???????????????????# ?? #??????? | | ???????????????????# #????????## #??????? | | ???????????????????# ## ##??????# ##????#? | | ???????????????????# @ u #???#???# #??????# | | ???????????????????## # # ##???????# ??????? | | ????????????? ??????## #?????????##??#???? | | ?????????????????????### d## #?????????????????? | | ???????????????????????##d ? #?????????????????? | | ??????????????????????? # ????????????????? | | ??????????????????????? # ??????????##???#?? | | ??????????????????????? ?????????????????? | | ??????????????????????## % ?????????#??????? | | ???????????????????????## ? ?????????##?????? | | ????????????????#???????? ### ??????????? ???? | | ????????????????????????? ##??# ???#??????????? | | ?????????????????????????# < #????#??????????????? | | ?????????????????????????? #??????????????????## | | ?????????????????????????? ##?????????????????## | | ?????????????????????????? ????????????????????# | | ??????????????????????????????????????????????#?# | | ?????????????????????????????????????????????#?### | | ??????????????????????????????????????## ######### | | ??????????????????????????????????????# | | ??????????????????????????????????????# | | ??????????????????????????????????????# ###### | | ????????????????????????????????????????????????# | | ????????????????????????????????????????????????# | | ????????????????????????????????????????????????# | +----------------------------------------------------+ Best States ------------- Heat Dissipation 25 Energy Generation 10 Energy Capacity 125 Matter Stores 300 Matter Capacity 300 Sight Range 16 Terrain Scan Range 16 Terrain Scan Density 10 Evasion (%) 55 Item Schematics ----------------- None Robot Schematics ------------------ None Fabricated ------------ Nothing Alien Tech Used ----------------- None Achievements -------------- None Challenges ------------ None Game ------ Seed BoltTransportVibroblade Manual? 0 Play Time 00:09:36 Cumulative 57.8 hours Start 2025.03.18 @ 11:18:19 End 2025.03.18 @ 11:25:16 Sessions 1 Manual Loads 0 Difficulty Rogue Special Mode None Game No. 36 Rogue 36 Adventurer 0 Explorer 0 Win Type - Total 0 Types 0/0/0/0/0/0/0/0/0 Lore% 24 Gallery% 44 Achievement% 43 Wizard Run 0 Options --------- Layout 1 ASCII 0 Keyboard 1 Movement Numpad Keybinds 0 Fullscreen 1 Font 24/Smallcaps Map View 50x35 Zoom Use 0% Tactical HUD 1 Map Filters NONE Filters NONE Steam 1 RUN: ea8f9e18-60b4-4ecc-8f9e-3e86e2cf6968